[Event "*** Titled Tuesday Blitz"]
[Site "Chess.com"]
[Date "2021.02.16"]
[Round "5"]
[White "dragos420"]
[Black "bascheyaro"]
[Result "0-1"]
[WhiteElo "2526"]
[BlackElo "2707"]
[TimeControl "180+1"]
[EndTime "10:58:07 PST"]
[Termination "bascheyaro won by resignation"]

1. e4 {[%clk 0:03:00.9]} 1... e6 {[%clk 0:03:00]} 2. d4 {[%clk 0:02:58.7]} 2...
d5 {[%clk 0:03:00.9]} 3. Nc3 {[%clk 0:02:59.1]} 3... Bb4 {[%clk 0:03:00.3]} 4.
exd5 {[%clk 0:02:54.7]} 4... exd5 {[%clk 0:03:00]} 5. Bd3 {[%clk 0:02:55.1]}
5... Nf6 {[%clk 0:03:00]} 6. Nf3 {[%clk 0:02:46.8]} 6... c5 {[%clk 0:02:59.9]}
7. a3 {[%clk 0:02:46.3]} 7... Bxc3+ {[%clk 0:02:59.6]} 8. bxc3 {[%clk
0:02:47.2]} 8... c4 {[%clk 0:03:00.1]} 9. Be2 {[%clk 0:02:46.1]} 9... O-O {[%clk
0:02:58.3]} 10. O-O {[%clk 0:02:46]} 10... Nc6 {[%clk 0:02:58.7]} 11. Bf4 {[%clk
0:02:43.9]} 11... Ne4 {[%clk 0:02:58.5]} 12. Bd2 {[%clk 0:02:32.2]} 12... Re8
{[%clk 0:02:57.5]} 13. Re1 {[%clk 0:02:30.7]} 13... Bf5 {[%clk 0:02:55.1]} 14.
Rb1 {[%clk 0:02:23.1]} 14... Re7 {[%clk 0:02:45]} 15. Ng5 {[%clk 0:02:12.1]}
15... Nxd2 {[%clk 0:02:30.6]} 16. Qxd2 {[%clk 0:02:13]} 16... Qd6 {[%clk
0:02:30.4]} 17. Ra1 {[%clk 0:01:40.9]} 17... Rae8 {[%clk 0:02:27.8]} 18. Nf3
{[%clk 0:01:34.5]} 18... Bg4 {[%clk 0:02:14.6]} 19. h3 {[%clk 0:01:26.5]} 19...
Bh5 {[%clk 0:02:14.6]} 20. Bd1 {[%clk 0:01:12.1]} 20... Rxe1+ {[%clk 0:01:49.8]}
21. Nxe1 {[%clk 0:01:13]} 21... Bg6 {[%clk 0:01:50.2]} 22. Nf3 {[%clk
0:01:04.7]} 22... f6 {[%clk 0:01:45.9]} 23. Nh4 {[%clk 0:01:02.1]} 23... Nd8
{[%clk 0:01:30]} 24. Nxg6 {[%clk 0:00:58.2]} 24... hxg6 {[%clk 0:01:30.9]} 25.
Bf3 {[%clk 0:00:55.6]} 25... Ne6 {[%clk 0:01:28.1]} 26. Re1 {[%clk 0:00:54.8]}
26... Kf7 {[%clk 0:01:28.1]} 27. Re3 {[%clk 0:00:44.5]} 27... Ng5 {[%clk
0:01:24.7]} 28. Rxe8 {[%clk 0:00:30.9]} 28... Nxf3+ {[%clk 0:01:23.8]} 29. gxf3
{[%clk 0:00:31.8]} 29... Kxe8 {[%clk 0:01:24]} 30. Qc1 {[%clk 0:00:32.4]} 30...
Kf7 {[%clk 0:01:22.3]} 31. Kg2 {[%clk 0:00:32.8]} 31... g5 {[%clk 0:01:21.9]}
32. Qb2 {[%clk 0:00:33.1]} 32... Qd7 {[%clk 0:01:20.2]} 33. Qb4 {[%clk
0:00:31.9]} 33... Kg6 {[%clk 0:01:16.2]} 34. Qc5 {[%clk 0:00:30.1]} 34... b6
{[%clk 0:01:15.9]} 35. Qf8 {[%clk 0:00:28.9]} 35... Qe6 {[%clk 0:01:10.9]} 36.
Qa8 {[%clk 0:00:21.1]} 36... a5 {[%clk 0:01:10.9]} 37. Qd8 {[%clk 0:00:20.7]}
37... Kh7 {[%clk 0:00:58.8]} 38. Kg3 {[%clk 0:00:19.5]} 38... Qf5 {[%clk
0:00:56.6]} 39. Qxb6 {[%clk 0:00:16]} 39... a4 {[%clk 0:00:55.9]} 40. Qc6 {[%clk
0:00:11.6]} 40... Qxc2 {[%clk 0:00:36]} 41. Qxd5 {[%clk 0:00:11.6]} 41... Qxc3
{[%clk 0:00:36.5]} 42. Qf5+ {[%clk 0:00:11.7]} 42... Kh6 {[%clk 0:00:36.2]} 43.
h4 {[%clk 0:00:08.3]} 43... gxh4+ {[%clk 0:00:35.6]} 44. Kxh4 {[%clk 0:00:08.5]}
44... Qxd4+ {[%clk 0:00:35.8]} 45. f4 {[%clk 0:00:09]} 45... Qxf2+ {[%clk
0:00:35]} 46. Kg4 {[%clk 0:00:09.4]} 46... Qg2+ {[%clk 0:00:33.1]} 47. Kh4
{[%clk 0:00:09.9]} 47... g5+ {[%clk 0:00:33.5]} 48. fxg5+ {[%clk 0:00:10.1]}
48... fxg5+ {[%clk 0:00:34.4]} 49. Qxg5+ {[%clk 0:00:10.5]} 49... Qxg5+ {[%clk
0:00:34.5]} 0-1

[Event "*** Titled Tuesday Blitz"]
[Site "Chess.com"]
[Date "2021.02.16"]
[Round "5"]
[White "Cecile-Haussernot"]
[Black "akanga001"]
[Result "1-0"]
[WhiteElo "2319"]
[BlackElo "1975"]
[TimeControl "180+1"]
[EndTime "10:58:07 PST"]
[Termination "Cecile-Haussernot won by resignation"]

1. e4 {[%clk 0:03:00.9]} 1... c6 {[%clk 0:02:59.2]} 2. d4 {[%clk 0:02:56.5]}
2... d5 {[%clk 0:02:59.7]} 3. e5 {[%clk 0:02:54.1]} 3... Bf5 {[%clk 0:02:59]} 4.
h4 {[%clk 0:02:45.7]} 4... h5 {[%clk 0:02:57.9]} 5. Bd3 {[%clk 0:02:42.4]} 5...
Bxd3 {[%clk 0:02:56.9]} 6. Qxd3 {[%clk 0:02:42.4]} 6... e6 {[%clk 0:02:57.5]} 7.
Nd2 {[%clk 0:02:35.8]} 7... Qa5 {[%clk 0:02:55.9]} 8. Ne2 {[%clk 0:02:33.4]}
8... Qa6 {[%clk 0:02:55.2]} 9. c4 {[%clk 0:02:28.2]} 9... Nd7 {[%clk 0:02:52.5]}
10. O-O {[%clk 0:02:24.1]} 10... Ne7 {[%clk 0:02:49.2]} 11. b3 {[%clk
0:02:18.3]} 11... Nf5 {[%clk 0:02:48.4]} 12. g3 {[%clk 0:02:02.3]} 12... Be7
{[%clk 0:02:30.5]} 13. Bb2 {[%clk 0:02:00.4]} 13... O-O {[%clk 0:02:25.1]} 14.
Nf4 {[%clk 0:01:58.7]} 14... g6 {[%clk 0:02:23.4]} 15. Nf3 {[%clk 0:01:47.2]}
15... Rac8 {[%clk 0:02:11.8]} 16. Rfc1 {[%clk 0:01:22.2]} 16... Nb6 {[%clk
0:02:10.7]} 17. Nd2 {[%clk 0:01:16.3]} 17... Rfd8 {[%clk 0:02:01.5]} 18. Ne2
{[%clk 0:01:04.4]} 18... dxc4 {[%clk 0:01:59.1]} 19. bxc4 {[%clk 0:01:02.8]}
19... Nd5 {[%clk 0:01:58.9]} 20. Qf3 {[%clk 0:00:54.6]} 20... Nb6 {[%clk
0:01:27.5]} 21. a4 {[%clk 0:00:35.7]} 21... Bb4 {[%clk 0:01:21.4]} 22. Bc3
{[%clk 0:00:35.4]} 22... Bxc3 {[%clk 0:01:18.3]} 23. Qxc3 {[%clk 0:00:36.3]}
23... Nxa4 {[%clk 0:01:15.5]} 24. Qb4 {[%clk 0:00:32.7]} 24... b5 {[%clk
0:01:16]} 25. cxb5 {[%clk 0:00:30.4]} 25... cxb5 {[%clk 0:01:15.3]} 26. Ne4
{[%clk 0:00:30.9]} 26... Qb6 {[%clk 0:00:55.3]} 27. Nf6+ {[%clk 0:00:30.2]}
27... Kg7 {[%clk 0:00:54]} 28. Rxc8 {[%clk 0:00:27.2]} 28... Rxc8 {[%clk
0:00:52.5]} 29. d5 {[%clk 0:00:27.7]} 29... a5 {[%clk 0:00:46.6]} 30. Qf4 {[%clk
0:00:23.1]} 30... exd5 {[%clk 0:00:37.5]} 31. Qg5 {[%clk 0:00:23.1]} 31... Qe6
{[%clk 0:00:28.3]} 32. Nxh5+ {[%clk 0:00:22.8]} 32... Kg8 {[%clk 0:00:26.4]} 33.
Nf6+ {[%clk 0:00:22.9]} 33... Kf8 {[%clk 0:00:26.1]} 34. Nf4 {[%clk 0:00:22.1]}
34... Qxe5 {[%clk 0:00:21.9]} 35. Nd7+ {[%clk 0:00:21.9]} 35... Kg7 {[%clk
0:00:18.1]} 36. Nxe5 {[%clk 0:00:22.4]} 36... Rc7 {[%clk 0:00:13.1]} 37. Nexg6
{[%clk 0:00:20.7]} 37... fxg6 {[%clk 0:00:11.2]} 38. Qxg6+ {[%clk 0:00:21.3]}
38... Kf8 {[%clk 0:00:12.1]} 39. Ne6+ {[%clk 0:00:20.7]} 39... Ke7 {[%clk
0:00:11.4]} 40. Nxc7 {[%clk 0:00:21.2]} 40... Kd7 {[%clk 0:00:10.9]} 41. Qxf5+
{[%clk 0:00:20.7]} 1-0

[Event "*** Titled Tuesday Blitz"]
[Site "Chess.com"]
[Date "2021.02.16"]
[Round "5"]
[White "WonderChampion"]
[Black "soumeow"]
[Result "1-0"]
[WhiteElo "2088"]
[BlackElo "2194"]
[TimeControl "180+1"]
[EndTime "10:58:08 PST"]
[Termination "WonderChampion won by resignation"]

1. d4 {[%clk 0:03:00.9]} 1... Nf6 {[%clk 0:02:51.6]} 2. Bg5 {[%clk 0:02:59.2]}
2... Ne4 {[%clk 0:02:47.2]} 3. Bf4 {[%clk 0:02:58]} 3... c5 {[%clk 0:02:47.2]}
4. f3 {[%clk 0:02:57.7]} 4... Qa5+ {[%clk 0:02:46.4]} 5. c3 {[%clk 0:02:56.1]}
5... Nf6 {[%clk 0:02:39.6]} 6. d5 {[%clk 0:02:55.3]} 6... Qb6 {[%clk 0:01:45.5]}
7. Bc1 {[%clk 0:02:50.6]} 7... e6 {[%clk 0:01:40.2]} 8. e4 {[%clk 0:02:48.8]}
8... exd5 {[%clk 0:01:35.8]} 9. exd5 {[%clk 0:02:49.7]} 9... d6 {[%clk
0:01:35.9]} 10. Bc4 {[%clk 0:02:44.1]} 10... Be7 {[%clk 0:01:29.6]} 11. Ne2
{[%clk 0:02:39.4]} 11... O-O {[%clk 0:01:28.1]} 12. O-O {[%clk 0:02:37.8]} 12...
Nbd7 {[%clk 0:01:11.3]} 13. Bg5 {[%clk 0:02:30.8]} 13... Ne5 {[%clk 0:01:06.2]}
14. Bb3 {[%clk 0:02:22.7]} 14... c4+ {[%clk 0:01:05.3]} 15. Kh1 {[%clk 0:02:15]}
15... cxb3 {[%clk 0:01:05]} 16. axb3 {[%clk 0:02:14.9]} 16... h6 {[%clk
0:00:58.1]} 17. Bf4 {[%clk 0:02:09.8]} 17... Bf5 {[%clk 0:00:49.6]} 18. Na3
{[%clk 0:01:59.1]} 18... Nd3 {[%clk 0:00:32.9]} 19. Bg3 {[%clk 0:01:51.2]} 19...
Nh5 {[%clk 0:00:30.4]} 20. Nd4 {[%clk 0:01:43.9]} 20... Nxg3+ {[%clk 0:00:25.3]}
21. hxg3 {[%clk 0:01:44.3]} 21... Bg6 {[%clk 0:00:25]} 22. Nc4 {[%clk
0:01:42.9]} 22... Qd8 {[%clk 0:00:22.6]} 23. f4 {[%clk 0:01:38.3]} 23... Nc5
{[%clk 0:00:18.2]} 24. f5 {[%clk 0:01:27.1]} 24... Bh7 {[%clk 0:00:17.9]} 25.
Qg4 {[%clk 0:01:24.9]} 25... Bf6 {[%clk 0:00:17.2]} 26. Nb5 {[%clk 0:01:22.3]}
26... Nxb3 {[%clk 0:00:14.3]} 27. Ra3 {[%clk 0:01:19.7]} 27... Nc5 {[%clk
0:00:13.2]} 28. Nbxd6 {[%clk 0:01:16.3]} 28... Qd7 {[%clk 0:00:11.9]} 29. b4
{[%clk 0:01:13.1]} 29... b5 {[%clk 0:00:10.6]} 30. bxc5 {[%clk 0:01:01.8]} 30...
bxc4 {[%clk 0:00:10.8]} 31. Qxc4 {[%clk 0:01:00.6]} 31... Be5 {[%clk 0:00:10.4]}
32. Ne4 {[%clk 0:00:53.4]} 32... Bxf5 {[%clk 0:00:09.3]} 33. c6 {[%clk 0:00:53]}
33... Qc8 {[%clk 0:00:08.9]} 34. Re1 {[%clk 0:00:38]} 34... Bxe4 {[%clk
0:00:08.4]} 35. Rxe4 {[%clk 0:00:37.9]} 35... Bxg3 {[%clk 0:00:08.2]} 36. Ra1
{[%clk 0:00:36]} 36... Bd6 {[%clk 0:00:07.8]} 37. Rd1 {[%clk 0:00:32.4]} 37...
Qf5 {[%clk 0:00:07.1]} 38. Rh4 {[%clk 0:00:29.9]} 38... Qg5 {[%clk 0:00:06.7]}
39. Rh3 {[%clk 0:00:26.6]} 39... Rfe8 {[%clk 0:00:06.1]} 40. Rf1 {[%clk
0:00:26.1]} 40... Qg4 {[%clk 0:00:05.3]} 41. Qxg4 {[%clk 0:00:25.6]} 1-0

[Event "*** Titled Tuesday Blitz"]
[Site "Chess.com"]
[Date "2021.02.16"]
[Round "5"]
[White "Gerodot71"]
[Black "frederiksvane"]
[Result "0-1"]
[WhiteElo "2478"]
[BlackElo "2697"]
[TimeControl "180+1"]
[EndTime "10:58:09 PST"]
[Termination "frederiksvane won by resignation"]

1. d4 {[%clk 0:02:56.1]} 1... Nf6 {[%clk 0:03:00]} 2. c4 {[%clk 0:02:56.5]} 2...
e6 {[%clk 0:03:00.4]} 3. Nf3 {[%clk 0:02:55.9]} 3... d5 {[%clk 0:03:00.4]} 4. g3
{[%clk 0:02:56.3]} 4... Bb4+ {[%clk 0:03:00]} 5. Bd2 {[%clk 0:02:55.7]} 5... Be7
{[%clk 0:03:00.5]} 6. Bg2 {[%clk 0:02:54.2]} 6... O-O {[%clk 0:03:01]} 7. O-O
{[%clk 0:02:52.9]} 7... c6 {[%clk 0:03:00.8]} 8. Qb3 {[%clk 0:02:52.6]} 8... b6
{[%clk 0:02:56.4]} 9. Bb4 {[%clk 0:02:52.4]} 9... Ba6 {[%clk 0:02:52.3]} 10.
Bxe7 {[%clk 0:02:45.1]} 10... Qxe7 {[%clk 0:02:51.5]} 11. Ne5 {[%clk 0:02:45.4]}
11... Nfd7 {[%clk 0:02:49.3]} 12. Qa3 {[%clk 0:02:24.9]} 12... Qxa3 {[%clk
0:02:45]} 13. Nxa3 {[%clk 0:02:25.8]} 13... Nxe5 {[%clk 0:02:44.1]} 14. dxe5
{[%clk 0:02:26.7]} 14... Nd7 {[%clk 0:02:43.7]} 15. f4 {[%clk 0:02:26.4]} 15...
Rfd8 {[%clk 0:02:29.4]} 16. Rac1 {[%clk 0:02:19.8]} 16... Rac8 {[%clk
0:02:23.5]} 17. Kf2 {[%clk 0:02:17.8]} 17... Nc5 {[%clk 0:02:15.5]} 18. Ke3
{[%clk 0:02:10.8]} 18... Kf8 {[%clk 0:02:05.2]} 19. b3 {[%clk 0:01:53.1]} 19...
Ke7 {[%clk 0:02:02]} 20. Rfd1 {[%clk 0:01:48.3]} 20... dxc4 {[%clk 0:01:49.1]}
21. Rxd8 {[%clk 0:01:46.3]} 21... Kxd8 {[%clk 0:01:31.7]} 22. Nxc4 {[%clk
0:01:46]} 22... Bxc4 {[%clk 0:01:28.8]} 23. Rxc4 {[%clk 0:01:46.9]} 23... Kd7
{[%clk 0:01:28.7]} 24. Rd4+ {[%clk 0:01:39.9]} 24... Ke7 {[%clk 0:01:21.7]} 25.
Rd6 {[%clk 0:01:38.5]} 25... Na6 {[%clk 0:01:19]} 26. a3 {[%clk 0:01:32.1]}
26... Nb8 {[%clk 0:01:11.4]} 27. Kd4 {[%clk 0:01:20.7]} 27... Rd8 {[%clk
0:01:09.3]} 28. Rxd8 {[%clk 0:01:19.8]} 28... Kxd8 {[%clk 0:01:10.2]} 29. Be4
{[%clk 0:01:14.1]} 29... g6 {[%clk 0:01:09.8]} 30. Kc4 {[%clk 0:01:12.2]} 30...
Kc7 {[%clk 0:01:09.4]} 31. Bc2 {[%clk 0:01:09.6]} 31... c5 {[%clk 0:01:08.3]}
32. e3 {[%clk 0:01:05.8]} 32... a6 {[%clk 0:01:05.7]} 33. g4 {[%clk 0:00:59.9]}
33... Nd7 {[%clk 0:01:00.5]} 34. h4 {[%clk 0:00:58.3]} 34... b5+ {[%clk
0:01:00.6]} 35. Kc3 {[%clk 0:00:56.3]} 35... Nb6 {[%clk 0:00:55.3]} 36. e4
{[%clk 0:00:51.5]} 36... Nd7 {[%clk 0:00:52.8]} 37. g5 {[%clk 0:00:46]} 37...
Nb8 {[%clk 0:00:52.8]} 38. f5 {[%clk 0:00:43.1]} 38... Nc6 {[%clk 0:00:50.6]}
39. h5 {[%clk 0:00:29.9]} 39... Nxe5 {[%clk 0:00:49.5]} 40. fxg6 {[%clk
0:00:24.1]} 40... fxg6 {[%clk 0:00:49.4]} 41. Bd1 {[%clk 0:00:24]} 41... Kd6
{[%clk 0:00:48.1]} 42. b4 {[%clk 0:00:23]} 42... c4 {[%clk 0:00:42.3]} 43. Kd4
{[%clk 0:00:22.2]} 43... Nc6+ {[%clk 0:00:38.2]} 44. Ke3 {[%clk 0:00:21.5]}
44... Ke5 {[%clk 0:00:39.1]} 45. h6 {[%clk 0:00:18.5]} 45... Nd8 {[%clk
0:00:34.7]} 46. Bh5 {[%clk 0:00:15.7]} 46... gxh5 {[%clk 0:00:29.9]} 47. g6
{[%clk 0:00:16.2]} 47... hxg6 {[%clk 0:00:30.8]} 0-1

[Event "*** Titled Tuesday Blitz"]
[Site "Chess.com"]
[Date "2021.02.16"]
[Round "5"]
[White "Aslanov_Umid"]
[Black "Skillcam"]
[Result "1-0"]
[WhiteElo "2353"]
[BlackElo "2490"]
[TimeControl "180+1"]
[EndTime "10:58:09 PST"]
[Termination "Aslanov_Umid won on time"]

1. e4 {[%clk 0:03:00.9]} 1... c5 {[%clk 0:02:59.3]} 2. Nf3 {[%clk 0:03:01.4]}
2... Nc6 {[%clk 0:02:59.9]} 3. d4 {[%clk 0:03:01.3]} 3... cxd4 {[%clk
0:03:00.8]} 4. Nxd4 {[%clk 0:03:02.1]} 4... Nf6 {[%clk 0:03:01.3]} 5. Nc3 {[%clk
0:03:02.6]} 5... e5 {[%clk 0:03:01.9]} 6. Ndb5 {[%clk 0:03:02.7]} 6... d6 {[%clk
0:03:02.6]} 7. Bg5 {[%clk 0:03:01.6]} 7... a6 {[%clk 0:03:02.9]} 8. Na3 {[%clk
0:03:02.4]} 8... b5 {[%clk 0:03:03.4]} 9. Nd5 {[%clk 0:03:03.1]} 9... Be7 {[%clk
0:03:04]} 10. Bxf6 {[%clk 0:03:03.7]} 10... Bxf6 {[%clk 0:03:04.9]} 11. c3
{[%clk 0:03:04.4]} 11... Ne7 {[%clk 0:03:03.5]} 12. Nc2 {[%clk 0:03:03.4]} 12...
O-O {[%clk 0:02:58.2]} 13. Ncb4 {[%clk 0:03:03.7]} 13... Bg5 {[%clk 0:02:55.2]}
14. h4 {[%clk 0:02:59.4]} 14... Bh6 {[%clk 0:02:54.8]} 15. a4 {[%clk 0:02:51.8]}
15... bxa4 {[%clk 0:02:53.7]} 16. Rxa4 {[%clk 0:02:52.7]} 16... a5 {[%clk
0:02:54.2]} 17. Nxe7+ {[%clk 0:02:42.1]} 17... Qxe7 {[%clk 0:02:55.1]} 18. Nd5
{[%clk 0:02:42.3]} 18... Qd8 {[%clk 0:02:48.6]} 19. Be2 {[%clk 0:02:31.6]} 19...
Bd7 {[%clk 0:02:45.3]} 20. Ra1 {[%clk 0:02:28.8]} 20... a4 {[%clk 0:02:30.1]}
21. Bg4 {[%clk 0:02:25.2]} 21... Be6 {[%clk 0:02:05.1]} 22. Bf3 {[%clk
0:01:42.6]} 22... Bd7 {[%clk 0:01:47.5]} 23. g4 {[%clk 0:01:34]} 23... Bf4
{[%clk 0:01:44.6]} 24. Nxf4 {[%clk 0:01:33.6]} 24... exf4 {[%clk 0:01:45.5]} 25.
Qd2 {[%clk 0:01:27.6]} 25... Qc8 {[%clk 0:01:39.4]} 26. Qxf4 {[%clk 0:01:20.7]}
26... a3 {[%clk 0:01:39.2]} 27. O-O {[%clk 0:01:08]} 27... axb2 {[%clk
0:01:35.4]} 28. Rxa8 {[%clk 0:01:08.8]} 28... Qxa8 {[%clk 0:01:36.1]} 29. Qxd6
{[%clk 0:01:04]} 29... Bxg4 {[%clk 0:00:24.9]} 30. Bxg4 {[%clk 0:00:33.2]} 30...
Qxe4 {[%clk 0:00:24.3]} 31. Qb4 {[%clk 0:00:33.2]} 31... Qc2 {[%clk 0:00:16.9]}
32. Bf3 {[%clk 0:00:26.1]} 32... Re8 {[%clk 0:00:07.1]} 33. Qb5 {[%clk
0:00:20.2]} 33... Rd8 {[%clk 0:00:06.5]} 34. Bg4 {[%clk 0:00:14.3]} 34... h5
{[%clk 0:00:02.9]} 35. Bf5 {[%clk 0:00:13.8]} 35... Qc1 {[%clk 0:00:02.2]} 36.
Bb1 {[%clk 0:00:11.7]} 1-0

[Event "*** Titled Tuesday Blitz"]
[Site "Chess.com"]
[Date "2021.02.16"]
[Round "5"]
[White "Matols"]
[Black "federicosellitti"]
[Result "0-1"]
[WhiteElo "2268"]
[BlackElo "2458"]
[TimeControl "180+1"]
[EndTime "10:58:09 PST"]
[Termination "federicosellitti won on time"]

1. d4 {[%clk 0:03:00.9]} 1... d5 {[%clk 0:02:59.6]} 2. c4 {[%clk 0:03:00.7]}
2... Nc6 {[%clk 0:02:59.2]} 3. Nc3 {[%clk 0:02:50.1]} 3... dxc4 {[%clk
0:02:59.1]} 4. Nf3 {[%clk 0:02:49.9]} 4... Nf6 {[%clk 0:02:58.5]} 5. e4 {[%clk
0:02:41.1]} 5... Bg4 {[%clk 0:02:50.2]} 6. d5 {[%clk 0:02:38.8]} 6... Ne5 {[%clk
0:02:35.7]} 7. Be2 {[%clk 0:02:22.9]} 7... Bxf3 {[%clk 0:02:07.9]} 8. gxf3
{[%clk 0:02:22.4]} 8... c6 {[%clk 0:01:53.6]} 9. Bf4 {[%clk 0:01:58.5]} 9... Ng6
{[%clk 0:01:50.6]} 10. Bg3 {[%clk 0:01:44.8]} 10... cxd5 {[%clk 0:01:39.3]} 11.
e5 {[%clk 0:01:37.3]} 11... Nd7 {[%clk 0:00:49]} 12. Nxd5 {[%clk 0:01:36.1]}
12... e6 {[%clk 0:00:33.4]} 13. Nc3 {[%clk 0:01:27.4]} 13... Bb4 {[%clk
0:00:23.1]} 14. Qa4 {[%clk 0:01:21.1]} 14... Bxc3+ {[%clk 0:00:18]} 15. bxc3
{[%clk 0:01:20.6]} 15... O-O {[%clk 0:00:18.2]} 16. f4 {[%clk 0:01:18.2]} 16...
a6 {[%clk 0:00:18]} 17. Qxc4 {[%clk 0:01:13.6]} 17... Rc8 {[%clk 0:00:18.4]} 18.
Qd4 {[%clk 0:01:12.8]} 18... Nc5 {[%clk 0:00:17.8]} 19. O-O {[%clk 0:01:10.1]}
19... h5 {[%clk 0:00:14.9]} 20. Bxh5 {[%clk 0:01:08.3]} 20... Nd3 {[%clk
0:00:08.3]} 21. Bxg6 {[%clk 0:00:34.2]} 21... fxg6 {[%clk 0:00:09.2]} 22. Qe4
{[%clk 0:00:23]} 22... Nc5 {[%clk 0:00:05.7]} 23. Qxg6 {[%clk 0:00:21.3]} 23...
Qe7 {[%clk 0:00:04.8]} 24. Rad1 {[%clk 0:00:18.9]} 24... Rf5 {[%clk 0:00:02.8]}
25. Kh1 {[%clk 0:00:18]} 25... Qf7 {[%clk 0:00:02.9]} 26. Qg4 {[%clk 0:00:14.8]}
26... Ne4 {[%clk 0:00:02.4]} 27. Rd3 {[%clk 0:00:09.3]} 27... Rxc3 {[%clk
0:00:01.1]} 28. Rxc3 {[%clk 0:00:09.2]} 28... Nxc3 {[%clk 0:00:02]} 29. Rc1
{[%clk 0:00:09.3]} 29... Nd5 {[%clk 0:00:02.4]} 30. Rc8+ {[%clk 0:00:08.8]}
30... Kh7 {[%clk 0:00:02.5]} 31. Qh4+ {[%clk 0:00:05.2]} 31... Rh5 {[%clk
0:00:02.8]} 32. Qd8 {[%clk 0:00:04.9]} 32... Qf5 {[%clk 0:00:03.2]} 33. Qh8+
{[%clk 0:00:04.4]} 33... Kg6 {[%clk 0:00:03.8]} 34. Qe8+ {[%clk 0:00:03.9]}
34... Kh6 {[%clk 0:00:04.4]} 35. Rc1 {[%clk 0:00:01.6]} 35... Qe4+ {[%clk
0:00:04.5]} 0-1

[Event "*** Titled Tuesday Blitz"]
[Site "Chess.com"]
[Date "2021.02.16"]
[Round "5"]
[White "mr65"]
[Black "BairaKovanova"]
[Result "1-0"]
[WhiteElo "2149"]
[BlackElo "2445"]
[TimeControl "180+1"]
[EndTime "10:58:10 PST"]
[Termination "mr65 won by resignation"]

1. e4 {[%clk 0:03:00.9]} 1... e5 {[%clk 0:02:59.3]} 2. Nf3 {[%clk 0:03:00.2]}
2... d6 {[%clk 0:02:56.5]} 3. d4 {[%clk 0:02:59.4]} 3... exd4 {[%clk 0:02:56.3]}
4. Nxd4 {[%clk 0:02:58.8]} 4... Nf6 {[%clk 0:02:57]} 5. Nc3 {[%clk 0:02:58.9]}
5... Be7 {[%clk 0:02:57.1]} 6. Bf4 {[%clk 0:02:58.6]} 6... O-O {[%clk
0:02:57.4]} 7. f3 {[%clk 0:02:58.8]} 7... Re8 {[%clk 0:02:55.6]} 8. Qd2 {[%clk
0:02:58.4]} 8... a6 {[%clk 0:02:32.5]} 9. O-O-O {[%clk 0:02:56.7]} 9... c5
{[%clk 0:02:32.7]} 10. Nf5 {[%clk 0:02:45]} 10... Bxf5 {[%clk 0:02:29.2]} 11.
exf5 {[%clk 0:02:43.9]} 11... Nc6 {[%clk 0:02:21.9]} 12. Bxd6 {[%clk 0:02:39]}
12... Bxd6 {[%clk 0:02:20.5]} 13. Qxd6 {[%clk 0:02:38]} 13... Qa5 {[%clk
0:02:21.1]} 14. Bc4 {[%clk 0:02:07.8]} 14... Nd4 {[%clk 0:02:21.2]} 15. Nd5
{[%clk 0:01:56]} 15... Nxd5 {[%clk 0:02:15.7]} 16. Qxd5 {[%clk 0:01:54.6]} 16...
Rf8 {[%clk 0:02:09.7]} 17. f6 {[%clk 0:01:45]} 17... g6 {[%clk 0:02:01.8]} 18.
c3 {[%clk 0:01:37.1]} 18... b5 {[%clk 0:01:57.6]} 19. cxd4 {[%clk 0:01:33.4]}
19... bxc4 {[%clk 0:01:57.7]} 20. Kb1 {[%clk 0:01:29.3]} 20... Rab8 {[%clk
0:01:54.5]} 21. Qxc4 {[%clk 0:01:18.9]} 21... Qb6 {[%clk 0:01:52.4]} 22. b3
{[%clk 0:01:14.3]} 22... Qxf6 {[%clk 0:01:48.9]} 23. dxc5 {[%clk 0:01:10.8]}
23... Rfc8 {[%clk 0:01:49]} 24. Rc1 {[%clk 0:01:00.4]} 24... a5 {[%clk
0:01:48.1]} 25. Rhd1 {[%clk 0:00:55.8]} 25... Rb4 {[%clk 0:01:43.2]} 26. Qc3
{[%clk 0:00:51.4]} 26... Qh4 {[%clk 0:01:20.9]} 27. c6 {[%clk 0:00:49]} 27... a4
{[%clk 0:01:18.7]} 28. c7 {[%clk 0:00:44.9]} 28... Rb7 {[%clk 0:01:08.1]} 29. g3
{[%clk 0:00:38]} 29... Qe7 {[%clk 0:01:03.1]} 30. Re1 {[%clk 0:00:32.1]} 30...
Qd7 {[%clk 0:00:59.3]} 31. Red1 {[%clk 0:00:23.8]} 31... Qe6 {[%clk 0:00:49]}
32. Qc4 {[%clk 0:00:19.4]} 32... Qf6 {[%clk 0:00:32.1]} 33. Qd4 {[%clk
0:00:16.3]} 33... Qxd4 {[%clk 0:00:27.3]} 34. Rxd4 {[%clk 0:00:15.3]} 34...
Rbxc7 {[%clk 0:00:26.3]} 35. Rxc7 {[%clk 0:00:14.6]} 35... Rxc7 {[%clk
0:00:26.4]} 36. Rxa4 {[%clk 0:00:14.4]} 36... Rc3 {[%clk 0:00:26.5]} 37. b4
{[%clk 0:00:13.4]} 37... Rxf3 {[%clk 0:00:26.3]} 38. b5 {[%clk 0:00:12.3]} 38...
Rf6 {[%clk 0:00:25.7]} 39. Rb4 {[%clk 0:00:11.7]} 39... Rb6 {[%clk 0:00:24.5]}
40. a4 {[%clk 0:00:11.2]} 40... f5 {[%clk 0:00:23.5]} 41. a5 {[%clk 0:00:10.6]}
41... Rb8 {[%clk 0:00:24]} 42. b6 {[%clk 0:00:10.6]} 42... Kf7 {[%clk 0:00:24]}
43. b7 {[%clk 0:00:10.3]} 43... Ke7 {[%clk 0:00:23.6]} 44. a6 {[%clk 0:00:10.2]}
44... Kd7 {[%clk 0:00:24]} 45. a7 {[%clk 0:00:10]} 1-0